[Event "Titled Tuesday Blitz February 15 Early 2022"]
[White "Gelman, Alexander"]
[Black "Dauner, Benedikt"]
[WhiteFideId "4118316"]
[BlackFideId "16225899"]
[WhiteElo "2375"]
[BlackElo "2230"]
[Result "1-0"]
[Round "02"]
[TimeControl "180+1"]
[Date "2022.02.15"]
[WhiteClock "0:00:15"]
[BlackClock "0:00:02"]

1. d4 {[%clk 0:03:00]}  d5 {[%clk 0:02:59]} 2. Nc3 {[%clk 0:03:00]}  Nf6 {[%clk 0:02:58]} 3. Bf4 {[%clk 0:03:00]}  c5 {[%clk 0:02:57]} 4. e3 {[%clk 0:03:00]}  cxd4 {[%clk 0:02:57]} 5. exd4 {[%clk 0:03:00]}  a6 {[%clk 0:02:57]} 6. Nf3 {[%clk 0:03:01]}  Nc6 {[%clk 0:02:54]} 7. Ne5 {[%clk 0:03:01]}  Bf5 {[%clk 0:02:49]} 8. g4 {[%clk 0:03:00]}  Be6 {[%clk 0:02:41]} 9. Nxc6 {[%clk 0:03:00]}  bxc6 {[%clk 0:02:41]} 10. g5 {[%clk 0:03:00]}  Nd7 {[%clk 0:02:36]} 11. h4 {[%clk 0:02:33]}  Bf5 {[%clk 0:02:31]} 12. Bd3 {[%clk 0:02:27]}  Bxd3 {[%clk 0:02:28]} 13. Qxd3 {[%clk 0:02:28]}  e6 {[%clk 0:02:26]} 14. O-O-O {[%clk 0:02:28]}  Qa5 {[%clk 0:02:11]} 15. h5 {[%clk 0:02:23]}  Bb4 {[%clk 0:02:10]} 16. g6 {[%clk 0:02:19]}  fxg6 {[%clk 0:01:43]} 17. hxg6 {[%clk 0:02:15]}  Bxc3 {[%clk 0:01:43]} 18. bxc3 {[%clk 0:01:48]}  h6 {[%clk 0:01:36]} 19. Rde1 {[%clk 0:01:13]}  O-O {[%clk 0:01:23]} 20. Bxh6 {[%clk 0:00:57]}  Qa3+ {[%clk 0:01:15]} 21. Kd1 {[%clk 0:00:55]}  Rxf2 {[%clk 0:00:15]} 22. Bc1 {[%clk 0:00:42]}  Qd6 {[%clk 0:00:08]} 23. Qh3 {[%clk 0:00:20]}  Kf8 {[%clk 0:00:08]} 24. Rxe6 {[%clk 0:00:16]}  Qf4 {[%clk 0:00:02]} 25. Qh8# {[%clk 0:00:15]} 1-0


[Site "https://www.chess.com"]

[Event "Titled Tuesday Blitz February 15 Early 2022"]
[White "Grischuk, Alexander"]
[Black "Hamley, Ryan"]
[WhiteFideId "4126025"]
[BlackFideId "30959497"]
[WhiteElo "2762"]
[BlackElo "2392"]
[Result "1-0"]
[Round "02"]
[TimeControl "180+1"]
[Date "2022.02.15"]
[WhiteClock "0:01:11"]
[BlackClock "0:00:05"]

1. e4 {[%clk 0:03:00]}  e5 {[%clk 0:02:58]} 2. Nf3 {[%clk 0:03:00]}  Nc6 {[%clk 0:02:58]} 3. Bc4 {[%clk 0:03:01]}  Bc5 {[%clk 0:02:57]} 4. d3 {[%clk 0:03:01]}  Nf6 {[%clk 0:02:56]} 5. Bg5 {[%clk 0:03:01]}  d6 {[%clk 0:02:55]} 6. c3 {[%clk 0:03:01]}  O-O {[%clk 0:02:51]} 7. Nbd2 {[%clk 0:03:00]}  a5 {[%clk 0:02:49]} 8. O-O {[%clk 0:02:58]}  Ba7 {[%clk 0:02:42]} 9. Kh1 {[%clk 0:02:57]}  Be6 {[%clk 0:02:41]} 10. Bxe6 {[%clk 0:02:54]}  fxe6 {[%clk 0:02:41]} 11. Qb3 {[%clk 0:02:49]}  Qd7 {[%clk 0:02:36]} 12. Nc4 {[%clk 0:02:42]}  Rab8 {[%clk 0:02:24]} 13. Qb5 {[%clk 0:02:39]}  Ng4 {[%clk 0:02:15]} 14. Bh4 {[%clk 0:02:25]}  Qe8 {[%clk 0:02:04]} 15. Bg3 {[%clk 0:02:21]}  Qh5 {[%clk 0:01:52]} 16. Ncd2 {[%clk 0:02:19]}  Bc5 {[%clk 0:01:44]} 17. d4 {[%clk 0:02:11]}  Bb6 {[%clk 0:01:29]} 18. Rae1 {[%clk 0:01:56]}  Rf6 {[%clk 0:01:17]} 19. h3 {[%clk 0:01:55]}  Rbf8 {[%clk 0:01:14]} 20. Kg1 {[%clk 0:01:55]}  Nh6 {[%clk 0:01:06]} 21. dxe5 {[%clk 0:01:49]}  Nxe5 {[%clk 0:00:58]} 22. Nxe5 {[%clk 0:01:47]}  dxe5 {[%clk 0:00:55]} 23. Qe2 {[%clk 0:01:47]}  Qg6 {[%clk 0:00:54]} 24. Kh2 {[%clk 0:01:47]}  Nf7 {[%clk 0:00:50]} 25. Nc4 {[%clk 0:01:46]}  Bc5 {[%clk 0:00:32]} 26. Qg4 {[%clk 0:01:46]}  Qxg4 {[%clk 0:00:25]} 27. hxg4 {[%clk 0:01:47]}  b6 {[%clk 0:00:26]} 28. Kg1 {[%clk 0:01:34]}  g6 {[%clk 0:00:20]} 29. Re2 {[%clk 0:01:33]}  h5 {[%clk 0:00:18]} 30. Nxe5 {[%clk 0:01:26]}  Nxe5 {[%clk 0:00:15]} 31. Bxe5 {[%clk 0:01:27]}  R6f7 {[%clk 0:00:15]} 32. gxh5 {[%clk 0:01:27]}  gxh5 {[%clk 0:00:16]} 33. g3 {[%clk 0:01:27]}  Rd7 {[%clk 0:00:16]} 34. Kg2 {[%clk 0:01:27]}  Rfd8 {[%clk 0:00:16]} 35. Bf4 {[%clk 0:01:24]}  Kf7 {[%clk 0:00:15]} 36. Rc1 {[%clk 0:01:22]}  Rd1 {[%clk 0:00:14]} 37. Rxd1 {[%clk 0:01:21]}  Rxd1 {[%clk 0:00:14]} 38. Rd2 {[%clk 0:01:22]}  Ra1 {[%clk 0:00:14]} 39. a3 {[%clk 0:01:21]}  Ke8 {[%clk 0:00:13]} 40. Bxc7 {[%clk 0:01:20]}  a4 {[%clk 0:00:10]} 41. Bd6 {[%clk 0:01:17]}  Rb1 {[%clk 0:00:07]} 42. Bxc5 {[%clk 0:01:13]}  bxc5 {[%clk 0:00:08]} 43. Kf3 {[%clk 0:01:14]}  Ke7 {[%clk 0:00:08]} 44. Ke3 {[%clk 0:01:14]}  Kf6 {[%clk 0:00:08]} 45. Kd3 {[%clk 0:01:14]}  Ke5 {[%clk 0:00:08]} 46. f4+ {[%clk 0:01:14]}  Kf6 {[%clk 0:00:09]} 47. Kc4 {[%clk 0:01:15]}  Rg1 {[%clk 0:00:06]} 48. Rh2 {[%clk 0:01:12]}  Rxg3 {[%clk 0:00:06]} 49. Rxh5 {[%clk 0:01:12]}  Rf3 {[%clk 0:00:06]} 50. f5 {[%clk 0:01:11]}  Ke5 {[%clk 0:00:04]} 51. fxe6+ {[%clk 0:01:11]}  Kxe6 {[%clk 0:00:04]} 52. Rxc5 {[%clk 0:01:11]}  Rf2 {[%clk 0:00:05]} 53. Rb5 {[%clk 0:01:11]} 1-0


[Site "https://www.chess.com"]

[Event "Titled Tuesday Blitz February 15 Early 2022"]
[White "Gubanov, Oleg"]
[Black "Corrales Jimenez, Fidel"]
[WhiteFideId "14115115"]
[BlackFideId "3506690"]
[WhiteElo "2080"]
[BlackElo "2541"]
[Result "0-1"]
[Round "02"]
[TimeControl "180+1"]
[Date "2022.02.15"]
[WhiteClock "0:00:04"]
[BlackClock "0:00:14"]

1. e4 {[%clk 0:03:00]}  c6 {[%clk 0:02:38]} 2. d4 {[%clk 0:02:59]}  d5 {[%clk 0:02:34]} 3. e5 {[%clk 0:03:00]}  c5 {[%clk 0:02:33]} 4. Nc3 {[%clk 0:02:47]}  Nc6 {[%clk 0:02:27]} 5. dxc5 {[%clk 0:02:33]}  e6 {[%clk 0:02:15]} 6. Bb5 {[%clk 0:02:21]}  Bxc5 {[%clk 0:02:11]} 7. Qg4 {[%clk 0:02:18]}  Kf8 {[%clk 0:02:00]} 8. Nf3 {[%clk 0:02:09]}  Nge7 {[%clk 0:01:59]} 9. O-O {[%clk 0:01:50]}  Ng6 {[%clk 0:01:55]} 10. Be3 {[%clk 0:01:25]}  Bxe3 {[%clk 0:01:42]} 11. fxe3 {[%clk 0:01:25]}  Ncxe5 {[%clk 0:01:42]} 12. Nxe5 {[%clk 0:01:24]}  Nxe5 {[%clk 0:01:43]} 13. Qf4 {[%clk 0:01:20]}  Qc7 {[%clk 0:01:33]} 14. e4 {[%clk 0:00:57]}  a6 {[%clk 0:01:23]} 15. exd5 {[%clk 0:00:29]}  axb5 {[%clk 0:01:21]} 16. d6 {[%clk 0:00:30]}  Qxd6 {[%clk 0:01:17]} 17. Rae1 {[%clk 0:00:25]}  g5 {[%clk 0:01:02]} 18. Qxe5 {[%clk 0:00:18]}  Qxe5 {[%clk 0:01:02]} 19. Rxe5 {[%clk 0:00:19]}  b4 {[%clk 0:01:03]} 20. Ne4 {[%clk 0:00:17]}  Ke7 {[%clk 0:00:56]} 21. Rb5 {[%clk 0:00:17]}  Rxa2 {[%clk 0:00:51]} 22. Rxb4 {[%clk 0:00:16]}  h6 {[%clk 0:00:50]} 23. Nc3 {[%clk 0:00:14]}  Ra5 {[%clk 0:00:49]} 24. Rc4 {[%clk 0:00:14]}  f5 {[%clk 0:00:34]} 25. Rc7+ {[%clk 0:00:14]}  Kd6 {[%clk 0:00:31]} 26. Rf7 {[%clk 0:00:12]}  Kc6 {[%clk 0:00:30]} 27. Rd1 {[%clk 0:00:12]}  f4 {[%clk 0:00:28]} 28. Re7 {[%clk 0:00:11]}  h5 {[%clk 0:00:26]} 29. Ne4 {[%clk 0:00:11]}  Rd5 {[%clk 0:00:16]} 30. Rxd5 {[%clk 0:00:10]}  Kxd5 {[%clk 0:00:17]} 31. Nxg5 {[%clk 0:00:11]}  b5 {[%clk 0:00:15]} 32. Rc7 {[%clk 0:00:09]}  Rg8 {[%clk 0:00:14]} 33. Nf3 {[%clk 0:00:08]}  e5 {[%clk 0:00:14]} 34. Re7 {[%clk 0:00:07]}  Be6 {[%clk 0:00:13]} 35. c3 {[%clk 0:00:06]}  Kd6 {[%clk 0:00:13]} 36. Rb7 {[%clk 0:00:05]}  Bd5 {[%clk 0:00:13]} 37. Rb6+ {[%clk 0:00:04]}  Kc7 {[%clk 0:00:14]} 0-1


[Site "https://www.chess.com"]

[Event "Titled Tuesday Blitz February 15 Early 2022"]
[White "Guliev, Logman"]
[Black "Van den Dikkenberg, Erik"]
[WhiteFideId "13400061"]
[BlackFideId "1005880"]
[WhiteElo "2128"]
[BlackElo "2118"]
[Result "1-0"]
[Round "02"]
[TimeControl "180+1"]
[Date "2022.02.15"]
[WhiteClock "0:01:28"]
[BlackClock "0:00:16"]

1. b3 {[%clk 0:03:00]}  d5 {[%clk 0:02:59]} 2. Bb2 {[%clk 0:03:00]}  Bf5 {[%clk 0:02:59]} 3. Nf3 {[%clk 0:03:00]}  e6 {[%clk 0:02:59]} 4. g3 {[%clk 0:02:59]}  Nd7 {[%clk 0:02:59]} 5. Bg2 {[%clk 0:02:59]}  Ngf6 {[%clk 0:02:59]} 6. O-O {[%clk 0:03:00]}  c5 {[%clk 0:02:57]} 7. d3 {[%clk 0:03:00]}  Bd6 {[%clk 0:02:56]} 8. Nbd2 {[%clk 0:03:00]}  O-O {[%clk 0:02:56]} 9. Qe1 {[%clk 0:03:00]}  e5 {[%clk 0:02:53]} 10. e4 {[%clk 0:03:00]}  dxe4 {[%clk 0:02:46]} 11. dxe4 {[%clk 0:02:59]}  Bg6 {[%clk 0:02:41]} 12. Nc4 {[%clk 0:02:57]}  Bc7 {[%clk 0:02:29]} 13. Nfxe5 {[%clk 0:02:52]}  Nxe5 {[%clk 0:02:29]} 14. Nxe5 {[%clk 0:02:51]}  Qe7 {[%clk 0:02:27]} 15. Nxg6 {[%clk 0:02:50]}  hxg6 {[%clk 0:02:27]} 16. e5 {[%clk 0:02:45]}  Ng4 {[%clk 0:02:22]} 17. Bxb7 {[%clk 0:02:28]}  Rab8 {[%clk 0:02:10]} 18. Bg2 {[%clk 0:02:23]}  Bxe5 {[%clk 0:02:02]} 19. Bxe5 {[%clk 0:02:21]}  Qxe5 {[%clk 0:01:55]} 20. Qxe5 {[%clk 0:02:21]}  Nxe5 {[%clk 0:01:55]} 21. Rfe1 {[%clk 0:02:21]}  f6 {[%clk 0:01:51]} 22. f4 {[%clk 0:02:18]}  Ng4 {[%clk 0:01:45]} 23. h3 {[%clk 0:02:17]}  Nh6 {[%clk 0:01:45]} 24. g4 {[%clk 0:02:15]}  Rfd8 {[%clk 0:01:38]} 25. Rad1 {[%clk 0:02:12]}  Kf8 {[%clk 0:01:38]} 26. c4 {[%clk 0:02:10]}  Nf7 {[%clk 0:01:36]} 27. Bd5 {[%clk 0:02:07]}  Nd6 {[%clk 0:01:34]} 28. Kf2 {[%clk 0:02:08]}  f5 {[%clk 0:01:33]} 29. Kf3 {[%clk 0:02:08]}  a5 {[%clk 0:01:30]} 30. Re6 {[%clk 0:02:07]}  a4 {[%clk 0:01:23]} 31. Rd3 {[%clk 0:01:51]}  axb3 {[%clk 0:01:20]} 32. axb3 {[%clk 0:01:51]}  g5 {[%clk 0:00:49]} 33. fxg5 {[%clk 0:01:46]}  fxg4+ {[%clk 0:00:48]} 34. Kxg4 {[%clk 0:01:45]}  Nf7 {[%clk 0:00:41]} 35. Rf3 {[%clk 0:01:41]}  Rxd5 {[%clk 0:00:32]} 36. cxd5 {[%clk 0:01:39]}  Kg8 {[%clk 0:00:32]} 37. g6 {[%clk 0:01:34]}  Nh6+ {[%clk 0:00:20]} 38. Kg5 {[%clk 0:01:34]}  Rd8 {[%clk 0:00:19]} 39. d6 {[%clk 0:01:33]}  Rc8 {[%clk 0:00:16]} 40. d7 {[%clk 0:01:31]}  Rd8 {[%clk 0:00:16]} 41. Re8+ {[%clk 0:01:30]}  Rxe8 {[%clk 0:00:16]} 42. dxe8=R# {[%clk 0:01:28]} 1-0


[Site "https://www.chess.com"]

[Event "Titled Tuesday Blitz February 15 Early 2022"]
[White "Gunina, Valentina"]
[Black "Svane, Rasmus"]
[WhiteFideId "4167570"]
[BlackFideId "4657101"]
[WhiteElo "2465"]
[BlackElo "2645"]
[Result "0-1"]
[Round "02"]
[TimeControl "180+1"]
[Date "2022.02.15"]
[WhiteClock "0:00:03"]
[BlackClock "0:00:51"]

1. d4 {[%clk 0:03:00]}  Nf6 {[%clk 0:02:59]} 2. c4 {[%clk 0:03:00]}  e6 {[%clk 0:02:59]} 3. Nf3 {[%clk 0:02:59]}  d5 {[%clk 0:03:00]} 4. Nc3 {[%clk 0:02:58]}  a6 {[%clk 0:03:00]} 5. cxd5 {[%clk 0:02:57]}  exd5 {[%clk 0:03:01]} 6. Bg5 {[%clk 0:02:56]}  Be6 {[%clk 0:03:01]} 7. e3 {[%clk 0:02:56]}  Nbd7 {[%clk 0:03:01]} 8. Bd3 {[%clk 0:02:56]}  Bd6 {[%clk 0:03:01]} 9. O-O {[%clk 0:02:55]}  c6 {[%clk 0:03:01]} 10. Qd2 {[%clk 0:02:55]}  O-O {[%clk 0:02:59]} 11. Rfe1 {[%clk 0:02:49]}  Bg4 {[%clk 0:02:58]} 12. e4 {[%clk 0:02:45]}  dxe4 {[%clk 0:02:45]} 13. Nxe4 {[%clk 0:02:45]}  Be7 {[%clk 0:02:45]} 14. Qf4 {[%clk 0:02:32]}  Bh5 {[%clk 0:02:26]} 15. Ng3 {[%clk 0:02:21]}  Bg6 {[%clk 0:02:23]} 16. Bxg6 {[%clk 0:02:20]}  hxg6 {[%clk 0:02:24]} 17. Qh4 {[%clk 0:02:18]}  Re8 {[%clk 0:02:20]} 18. Re2 {[%clk 0:01:59]}  Nf8 {[%clk 0:02:13]} 19. Rae1 {[%clk 0:01:54]}  Ne6 {[%clk 0:02:04]} 20. Rxe6 {[%clk 0:01:46]}  fxe6 {[%clk 0:02:05]} 21. Ne5 {[%clk 0:01:46]}  Nh7 {[%clk 0:02:04]} 22. Bxe7 {[%clk 0:01:42]}  Qxe7 {[%clk 0:02:05]} 23. Qe4 {[%clk 0:01:39]}  g5 {[%clk 0:01:31]} 24. Qe3 {[%clk 0:01:29]}  Rad8 {[%clk 0:01:28]} 25. Ne4 {[%clk 0:01:29]}  Qb4 {[%clk 0:01:06]} 26. Nc5 {[%clk 0:00:25]}  Qxd4 {[%clk 0:01:00]} 27. Nxb7 {[%clk 0:00:16]}  Qxe3 {[%clk 0:00:59]} 28. fxe3 {[%clk 0:00:16]}  Rd2 {[%clk 0:00:59]} 29. Nc4 {[%clk 0:00:13]}  Rc2 {[%clk 0:00:57]} 30. Nbd6 {[%clk 0:00:11]}  Rf8 {[%clk 0:00:58]} 31. Rf1 {[%clk 0:00:03]}  Rxf1+ {[%clk 0:00:58]} 32. Kxf1 {[%clk 0:00:03]}  Nf6 {[%clk 0:00:59]} 33. h3 {[%clk 0:00:03]}  Ne8 {[%clk 0:00:51]} 0-1


[Site "https://www.chess.com"]

[Event "Titled Tuesday Blitz February 15 Early 2022"]
[White "Gurevich, Dmitry"]
[Black "Cunjalo, Faris"]
[WhiteFideId "2000407"]
[BlackFideId "14410710"]
[WhiteElo "2506"]
[BlackElo "2263"]
[Result "0-1"]
[Round "02"]
[TimeControl "180+1"]
[Date "2022.02.15"]
[WhiteClock "0:00:03"]
[BlackClock "0:00:16"]

1. d4 {[%clk 0:02:58]}  Nf6 {[%clk 0:02:59]} 2. c4 {[%clk 0:02:57]}  g6 {[%clk 0:02:59]} 3. Nc3 {[%clk 0:02:57]}  c5 {[%clk 0:03:00]} 4. d5 {[%clk 0:02:55]}  Bg7 {[%clk 0:03:00]} 5. e4 {[%clk 0:02:55]}  d6 {[%clk 0:03:00]} 6. Nf3 {[%clk 0:02:53]}  O-O {[%clk 0:03:01]} 7. h3 {[%clk 0:02:53]}  e6 {[%clk 0:03:01]} 8. Bd3 {[%clk 0:02:52]}  Nbd7 {[%clk 0:03:01]} 9. O-O {[%clk 0:02:51]}  e5 {[%clk 0:03:01]} 10. Bg5 {[%clk 0:02:48]}  h6 {[%clk 0:03:01]} 11. Bd2 {[%clk 0:02:46]}  Nh7 {[%clk 0:03:00]} 12. Qc2 {[%clk 0:02:45]}  Ndf6 {[%clk 0:02:46]} 13. Nh2 {[%clk 0:02:37]}  Nh5 {[%clk 0:02:45]} 14. Ne2 {[%clk 0:02:36]}  Qh4 {[%clk 0:02:32]} 15. Kh1 {[%clk 0:02:09]}  Ng5 {[%clk 0:02:11]} 16. Ng1 {[%clk 0:02:00]}  Qxf2 {[%clk 0:02:04]} 17. Ng4 {[%clk 0:01:37]}  Qh4 {[%clk 0:01:41]} 18. Be1 {[%clk 0:01:03]}  Ng3+ {[%clk 0:01:41]} 19. Bxg3 {[%clk 0:00:46]}  Qxg3 {[%clk 0:01:42]} 20. Nh2 {[%clk 0:00:43]}  Nh7 {[%clk 0:01:30]} 21. Rf3 {[%clk 0:00:36]}  Qh4 {[%clk 0:01:30]} 22. Raf1 {[%clk 0:00:35]}  Bd7 {[%clk 0:01:26]} 23. g3 {[%clk 0:00:31]}  Qe7 {[%clk 0:01:24]} 24. h4 {[%clk 0:00:30]}  h5 {[%clk 0:01:25]} 25. R3f2 {[%clk 0:00:29]}  Bh6 {[%clk 0:01:25]} 26. Be2 {[%clk 0:00:24]}  a6 {[%clk 0:01:19]} 27. Kg2 {[%clk 0:00:23]}  b5 {[%clk 0:01:15]} 28. b3 {[%clk 0:00:23]}  bxc4 {[%clk 0:01:14]} 29. bxc4 {[%clk 0:00:23]}  Rab8 {[%clk 0:01:12]} 30. Qd1 {[%clk 0:00:23]}  Kg7 {[%clk 0:01:06]} 31. Bd3 {[%clk 0:00:23]}  Be3 {[%clk 0:00:57]} 32. Rf3 {[%clk 0:00:21]}  Rb2+ {[%clk 0:00:57]} 33. Kh1 {[%clk 0:00:19]}  Bh6 {[%clk 0:00:47]} 34. R3f2 {[%clk 0:00:17]}  Rxf2 {[%clk 0:00:46]} 35. Rxf2 {[%clk 0:00:17]}  Rb8 {[%clk 0:00:47]} 36. Kg2 {[%clk 0:00:15]}  Nf6 {[%clk 0:00:47]} 37. Nh3 {[%clk 0:00:13]}  Ng4 {[%clk 0:00:43]} 38. Nxg4 {[%clk 0:00:13]}  Bxg4 {[%clk 0:00:34]} 39. Be2 {[%clk 0:00:13]}  Bd7 {[%clk 0:00:32]} 40. Ng1 {[%clk 0:00:10]}  Be3 {[%clk 0:00:30]} 41. Rf3 {[%clk 0:00:09]}  Bd4 {[%clk 0:00:31]} 42. Rd3 {[%clk 0:00:10]}  Qd8 {[%clk 0:00:26]} 43. Rb3 {[%clk 0:00:09]}  Rb4 {[%clk 0:00:23]} 44. Rxb4 {[%clk 0:00:06]}  cxb4 {[%clk 0:00:24]} 45. Nf3 {[%clk 0:00:02]}  Bc5 {[%clk 0:00:25]} 46. Qb3 {[%clk 0:00:02]}  a5 {[%clk 0:00:25]} 47. Bd1 {[%clk 0:00:02]}  a4 {[%clk 0:00:25]} 48. Qd3 {[%clk 0:00:03]}  f6 {[%clk 0:00:21]} 49. Qd2 {[%clk 0:00:03]}  Qh8 {[%clk 0:00:21]} 50. Ne1 {[%clk 0:00:03]}  Qh6 {[%clk 0:00:21]} 51. Qxh6+ {[%clk 0:00:03]}  Kxh6 {[%clk 0:00:22]} 52. Nd3 {[%clk 0:00:03]}  f5 {[%clk 0:00:21]} 53. Nxc5 {[%clk 0:00:02]}  dxc5 {[%clk 0:00:21]} 54. Kf3 {[%clk 0:00:03]}  g5 {[%clk 0:00:20]} 55. exf5 {[%clk 0:00:02]}  b3 {[%clk 0:00:17]} 56. hxg5+ {[%clk 0:00:02]}  Kxg5 {[%clk 0:00:17]} 57. Bxb3 {[%clk 0:00:02]}  axb3 {[%clk 0:00:18]} 58. axb3 {[%clk 0:00:03]}  Kxf5 {[%clk 0:00:18]} 59. Ke3 {[%clk 0:00:03]}  e4 {[%clk 0:00:17]} 60. Kf2 {[%clk 0:00:02]}  Ke5 {[%clk 0:00:16]} 61. Ke3 {[%clk 0:00:03]}  Bg4 {[%clk 0:00:15]} 62. Kf2 {[%clk 0:00:02]}  Bd1 {[%clk 0:00:16]} 63. d6 {[%clk 0:00:03]}  Kxd6 {[%clk 0:00:16]} 0-1


[Site "https://www.chess.com"]

[Event "Titled Tuesday Blitz February 15 Early 2022"]
[White "Ianov, Viktor"]
[Black "Qashashvili, Alexandre"]
[WhiteFideId "14102730"]
[BlackFideId "13600842"]
[WhiteElo "2215"]
[BlackElo "2316"]
[Result "1/2-1/2"]
[Round "02"]
[TimeControl "180+1"]
[Date "2022.02.15"]
[WhiteClock "0:01:18"]
[BlackClock "0:00:48"]

1. Nf3 {[%clk 0:03:00]}  c6 {[%clk 0:02:54]} 2. g3 {[%clk 0:02:57]}  d5 {[%clk 0:02:55]} 3. Bg2 {[%clk 0:02:56]}  Bf5 {[%clk 0:02:55]} 4. O-O {[%clk 0:02:53]}  Nf6 {[%clk 0:02:55]} 5. d3 {[%clk 0:02:52]}  Qc8 {[%clk 0:02:54]} 6. c4 {[%clk 0:02:52]}  Bh3 {[%clk 0:02:51]} 7. Bxh3 {[%clk 0:02:50]}  Qxh3 {[%clk 0:02:49]} 8. Qb3 {[%clk 0:02:50]}  Qc8 {[%clk 0:02:45]} 9. Nc3 {[%clk 0:02:45]}  e6 {[%clk 0:02:44]} 10. Bg5 {[%clk 0:02:40]}  Be7 {[%clk 0:02:43]} 11. Rac1 {[%clk 0:02:40]}  dxc4 {[%clk 0:02:31]} 12. Qxc4 {[%clk 0:02:39]}  Nbd7 {[%clk 0:02:30]} 13. b4 {[%clk 0:02:39]}  a6 {[%clk 0:02:29]} 14. a4 {[%clk 0:02:34]}  O-O {[%clk 0:02:28]} 15. Qb3 {[%clk 0:02:28]}  h6 {[%clk 0:02:26]} 16. Bd2 {[%clk 0:02:23]}  Rd8 {[%clk 0:02:16]} 17. Rfd1 {[%clk 0:02:20]}  Nd5 {[%clk 0:02:12]} 18. Nxd5 {[%clk 0:02:12]}  exd5 {[%clk 0:02:13]} 19. b5 {[%clk 0:02:12]}  axb5 {[%clk 0:02:12]} 20. axb5 {[%clk 0:02:12]}  Nf6 {[%clk 0:02:07]} 21. bxc6 {[%clk 0:02:09]}  bxc6 {[%clk 0:02:08]} 22. Bc3 {[%clk 0:02:05]}  c5 {[%clk 0:01:41]} 23. Bxf6 {[%clk 0:02:03]}  Bxf6 {[%clk 0:01:41]} 24. Kg2 {[%clk 0:02:01]}  Qe6 {[%clk 0:01:24]} 25. Rd2 {[%clk 0:01:52]}  Rac8 {[%clk 0:01:22]} 26. Rdc2 {[%clk 0:01:47]}  c4 {[%clk 0:01:20]} 27. dxc4 {[%clk 0:01:45]}  dxc4 {[%clk 0:01:21]} 28. Qb4 {[%clk 0:01:43]}  c3 {[%clk 0:01:15]} 29. e3 {[%clk 0:01:40]}  Qd5 {[%clk 0:01:00]} 30. e4 {[%clk 0:01:34]}  Qe6 {[%clk 0:00:56]} 31. e5 {[%clk 0:01:30]}  Bxe5 {[%clk 0:00:56]} 32. Re1 {[%clk 0:01:21]}  f6 {[%clk 0:00:54]} 33. Nxe5 {[%clk 0:01:21]}  fxe5 {[%clk 0:00:54]} 34. Rxc3 {[%clk 0:01:21]}  Rxc3 {[%clk 0:00:50]} 35. Qxc3 {[%clk 0:01:20]}  Qd5+ {[%clk 0:00:48]} 36. Qf3 {[%clk 0:01:18]} 1/2-1/2


[Site "https://www.chess.com"]

[Event "Titled Tuesday Blitz February 15 Early 2022"]
[White "Idrisov, Ildar F"]
[Black "Samunenkov, Ihor"]
[WhiteFideId "4151020"]
[BlackFideId "14187086"]
[WhiteElo "2209"]
[BlackElo "2406"]
[Result "0-1"]
[Round "02"]
[TimeControl "180+1"]
[Date "2022.02.15"]
[WhiteClock "0:00:01"]
[BlackClock "0:00:03"]

1. Nf3 {[%clk 0:03:00]}  Nf6 {[%clk 0:02:58]} 2. b3 {[%clk 0:03:00]}  c5 {[%clk 0:02:49]} 3. Bb2 {[%clk 0:03:00]}  Nc6 {[%clk 0:02:50]} 4. c4 {[%clk 0:02:58]}  d6 {[%clk 0:02:48]} 5. d4 {[%clk 0:02:57]}  cxd4 {[%clk 0:02:47]} 6. Nxd4 {[%clk 0:02:56]}  e5 {[%clk 0:02:48]} 7. Nxc6 {[%clk 0:02:56]}  bxc6 {[%clk 0:02:48]} 8. g3 {[%clk 0:02:57]}  Be7 {[%clk 0:02:45]} 9. Bg2 {[%clk 0:02:57]}  Qc7 {[%clk 0:02:41]} 10. O-O {[%clk 0:02:56]}  O-O {[%clk 0:02:41]} 11. Nc3 {[%clk 0:02:53]}  Be6 {[%clk 0:02:40]} 12. Rc1 {[%clk 0:02:47]}  Qd7 {[%clk 0:02:32]} 13. Na4 {[%clk 0:02:45]}  Qc7 {[%clk 0:02:03]} 14. e4 {[%clk 0:02:28]}  Rad8 {[%clk 0:01:56]} 15. Qe2 {[%clk 0:02:18]}  Nd7 {[%clk 0:01:47]} 16. f4 {[%clk 0:02:01]}  f6 {[%clk 0:01:47]} 17. Rfd1 {[%clk 0:01:47]}  Nb6 {[%clk 0:01:46]} 18. Nc3 {[%clk 0:01:40]}  a5 {[%clk 0:01:46]} 19. fxe5 {[%clk 0:01:17]}  dxe5 {[%clk 0:01:42]} 20. Rxd8 {[%clk 0:01:16]}  Rxd8 {[%clk 0:01:40]} 21. Rd1 {[%clk 0:01:16]}  Bc5+ {[%clk 0:01:40]} 22. Kh1 {[%clk 0:01:15]}  Bd4 {[%clk 0:01:36]} 23. Rd2 {[%clk 0:01:10]}  g6 {[%clk 0:01:07]} 24. Nd1 {[%clk 0:01:00]}  Bc5 {[%clk 0:00:51]} 25. Bc3 {[%clk 0:00:56]}  Bb4 {[%clk 0:00:48]} 26. Bf3 {[%clk 0:00:47]}  Kg7 {[%clk 0:00:45]} 27. h4 {[%clk 0:00:45]}  h5 {[%clk 0:00:44]} 28. Bxb4 {[%clk 0:00:35]}  axb4 {[%clk 0:00:44]} 29. Rxd8 {[%clk 0:00:34]}  Qxd8 {[%clk 0:00:44]} 30. Qe3 {[%clk 0:00:34]}  Nd7 {[%clk 0:00:25]} 31. Nf2 {[%clk 0:00:29]}  Qa5 {[%clk 0:00:23]} 32. Qd2 {[%clk 0:00:25]}  Qc5 {[%clk 0:00:17]} 33. Kg2 {[%clk 0:00:23]}  Kf7 {[%clk 0:00:11]} 34. Kf1 {[%clk 0:00:17]}  Ke7 {[%clk 0:00:04]} 35. Ke2 {[%clk 0:00:17]}  Qd6 {[%clk 0:00:04]} 36. Qxd6+ {[%clk 0:00:15]}  Kxd6 {[%clk 0:00:04]} 37. Nd3 {[%clk 0:00:14]}  c5 {[%clk 0:00:05]} 38. Nb2 {[%clk 0:00:13]}  Nb8 {[%clk 0:00:05]} 39. Na4 {[%clk 0:00:11]}  Nc6 {[%clk 0:00:05]} 40. Ke3 {[%clk 0:00:09]}  Nd4 {[%clk 0:00:06]} 41. Bd1 {[%clk 0:00:09]}  Kc6 {[%clk 0:00:03]} 42. Nb2 {[%clk 0:00:07]}  Bd7 {[%clk 0:00:02]} 43. Nd3 {[%clk 0:00:07]}  Kd6 {[%clk 0:00:03]} 44. Ne1 {[%clk 0:00:06]}  Bc6 {[%clk 0:00:02]} 45. Nf3 {[%clk 0:00:05]}  Ne6 {[%clk 0:00:02]} 46. Be2 {[%clk 0:00:03]}  f5 {[%clk 0:00:03]} 47. Bd3 {[%clk 0:00:02]}  f4+ {[%clk 0:00:03]} 48. gxf4 {[%clk 0:00:02]}  Nxf4 {[%clk 0:00:03]} 49. Bf1 {[%clk 0:00:02]}  Bd7 {[%clk 0:00:02]} 50. Ng5 {[%clk 0:00:02]}  Bg4 {[%clk 0:00:02]} 51. Nf7+ {[%clk 0:00:01]}  Ke6 {[%clk 0:00:03]} 0-1


[Site "https://www.chess.com"]